Cogmind - Beta 10 *** ADVENTURER MODE // 2020.09.18 @ 22:02:38 Player: Noah Result: Destroyed by as-39549 with Assembled Heavy Rifle Performance ------------- Evolutions (0) 0 Regions Visited (2) 400 Robots Destroyed (16) 80 Value Destroyed (380) 380 Prototype IDs (2) 40 Alien Tech Used (0) 0 Bonus (0) 0 TOTAL SCORE: 900 Bonus ------- None Cogmind --------- Core Integrity 0/250 Matter 298/300 Energy 125/125 System Corruption 3% Temperature Cool (50) Movement Flying (120) Ox1 Location -10/Mines Parts ------- > --- POWER (1) -------- Light Ion Engine > --- PROPULSION (2) --- Flight Unit > --- UTILITY (2) ------ Sensor Array Transport Network Coupler > --- WEAPON (2) ------- Light Assault Rifle > --- INVENTORY (4) ---- Light Ion Engine Grenade Launcher Grenade Launcher Peak State ------------ > --- POWER ------------ Ion Engine > --- PROPULSION ------- Aluminum Leg Aluminum Leg > --- UTILITY ---------- Sensor Array Seismic Analyzer > --- WEAPON ----------- Small Laser Light Assault Rifle > --- INVENTORY -------- Light Ion Engine Grenade Launcher [Rating: 7] Favorites ----------- Power Light Ion Engine Engine Light Ion Engine Propulsion Flight Unit Treads Light Treads Leg Aluminum Leg Wheel Compact Wheel Flight Unit Flight Unit Utility Seismic Analyzer Device Sensor Array Storage Small Storage Unit Processor Seismic Analyzer Weapon Light Assault Rifle Energy Gun Small Laser Ballistic Gun Light Assault Rifle Launcher Grenade Launcher Special Weapon Mining Laser Build | -11 -10 -10 ------- Run | Scr Mat Min Slots Evolved . | . . . Power . | . . . Propulsion . | . . . Utility . | . . . Weapon . | . . . Parts Attached 34 | 6 19 9 Power 5 | 1 2 2 Engine 5 | 1 2 2 Core . | . . . Reactor . | . . . Propulsion 11 | 2 7 2 Treads 1 | . 1 . Leg 2 | . 2 . Wheel 4 | 2 2 . Hover . | . . . Flight 4 | . 2 2 Utility 7 | 1 4 2 Device 4 | . 3 1 Storage 1 | 1 . . Processor 2 | . 1 1 Hackware . | . . . Protection . | . . . Artifact . | . . . Weapon 11 | 2 6 3 Energy Gun 5 | 1 3 1 Energy Cannon . | . . . Ballistic Gun 4 | 1 1 2 Ballistic Cannon . | . . . Launcher 1 | . 1 . Special Weapon 1 | . 1 . Impact Weapon . | . . . Slashing Weapon . | . . . Piercing Weapon . | . . . Special Melee Weapon . | . . . Unidentified Prototypes . | . . . Parts Lost 14 | . 6 8 Power 2 | . 1 1 Propulsion 5 | . 2 3 Utility 2 | . 1 1 Weapon 5 | . 2 3 Highest Loss Streak 6 | . 4 6 Average Slot Usage (%) 79 | . 75 90 Engine 13 | . 13 12 Treads 5 | . 6 . Leg 3 | . 4 . Wheel 6 | . 8 2 Flight 8 | . 3 22 Device 6 | . 4 12 Storage 1 | . 1 . Processor 6 | . 4 14 Energy Gun 10 | . 13 2 Ballistic Gun 14 | . 12 21 Special Weapon 1 | . 1 . Naked Turns . | . . . Heaviest Build 9 | 9 9 9 Greatest Support 32 | 20 32 32 Greatest Overweight (x) 1 | . 1 . Average Overweight (x) . | . . . Largest Inventory Capacity 6 | 6 6 4 Average Capacity 4 | 5 4 4 Most Carried 6 | 6 6 4 Average Carried 3 | 3 2 3 Final Capacity 6 | 6 4 4 Final Carried 6 | 6 4 3 Class Distribution -------------------- 79% | Mutant 20% | Scavenger-Mutant Dominant Class ---------------- Mutant | -10/Materials Scavenger-Mutant | -10/Mines Resources | -11 -10 -10 ----------- Run | Scr Mat Min Matter Collected 568 | 233 234 101 Remotely . | . . . Salvage Created 464 | . 427 37 Parts 35 | . 30 5 Haulers Intercepted 1 | . 1 . Recyclers Shooed 3 | . 3 . Parts Field Recycled . | . . . Retrieved Matter . | . . . Parts Self-Destructed . | . . . Prevented . | . . . Kills | -11 -10 -10 ------- Run | Scr Mat Min Combat Hostiles Destroyed 12 | . 10 2 Guns 11 | . 9 2 Cannons 1 | . 1 . Classes Destroyed 5 | . 5 . Builder 1 | . 1 . Hauler 1 | . 1 . Watcher 2 | . 2 . Swarmer 5 | . 3 2 Grunt 7 | . 7 . Best Kill Streak 3 | . 3 2 Combat Bots Only 3 | . 3 2 Max Kills in Single Turn 1 | . 1 1 Gunslinging . | . . . Exploded . | . . . Melee . | . . . Uniques/NPCs Destroyed . | . . . Combat | -11 -10 -10 -------- Run | Scr Mat Min Damage Taken 909 | . 434 475 Core 254 | . 71 183 Absorbed by Shields . | . . . Core Remaining (%) 100 | 100 . . Volleys Fired 66 | . 53 13 Largest 2 | . 2 2 Hottest 120 | . 120 60 Shots Fired 118 | . 97 21 Gun 113 | . 92 21 Cannon . | . . . Launcher 1 | . 1 . Special 4 | . 4 . Kinetic 51 | . 39 12 Thermal 47 | . 45 2 Explosive 1 | . 1 . Electromagnetic 19 | . 12 7 Robot Hit Streak 21 | . 21 2 Robot Miss Streak 4 | . 3 4 Penetration Max . | . . . Secondary Targets 2 | . 2 . Max Gunslinging Chain 1 | . 1 . Shots Hit Robots 62 | . 58 4 Core Hits 32 | . 26 6 Critical Hits . | . . . Critical Kills . | . . . Critical Parts Destroyed . | . . . Melee Attacks . | . . . Impact . | . . . Slashing . | . . . Piercing . | . . . Sneak Attacks . | . . . Combat Hostiles . | . . . Follow-up Attacks . | . . . Damage Inflicted 837 | . 684 153 Guns 650 | . 566 84 Cannons . | . . . Explosions 84 | . 39 45 Melee . | . . . Ramming 31 | . 7 24 Kinetic 162 | . 154 8 Thermal 523 | . 456 67 Explosive . | . . . Electromagnetic 121 | . 67 54 Impact . | . . . Slashing . | . . . Piercing . | . . . Highest Corruption 3 | . 2 3 Average Corruption 2 | . 1 2 Corruption Purged . | . . . Effects 8 | . 4 4 Message Errors 3 | . 2 1 Matter Fused 2 | . . 2 Heat Flow Errors 1 | . 1 . Targeting Errors 1 | . 1 . Weapon Failures 1 | . . 1 Overload Shots . | . . . Overflow Damage 9 | . . 9 Projectiles . | . . . Explosions 9 | . . 9 Melee . | . . . Knockbacks . | . . . Impact . | . . . Kinetic . | . . . Secondary . | . . . Self-Inflicted Damage 29 | . 3 26 Shots 1 | . . 1 Rammed 13 | . 1 12 Targets Rammed 13 | . 1 12 Kicked . | . . . Crushed . | . . . Highest Temperature 150 | . 150 32 Average Temperature 48 | . 52 13 Received Heat Transfer 320 | . 300 20 Siege Activations . | . . . Robots Corrupted . | . . . Combat Hostiles . | . . . Parts Fried . | . . . Impact Corruptions . | . . . Robots Melted . | . . . Combat Hostiles . | . . . Parts Melted . | . . . Heat Transferred 1173 | . 1023 150 Parts Sabotaged . | . . . Parts Stolen . | . . . Parts Stripped . | . . . Power Chain Reactions 2 | . 1 1 Missiles Intercepted . | . . . Alert | -11 -10 -10 ------- Run | Scr Mat Min Peak Influence 129 | . 129 105 Initial 42 | . . 42 Average 47 | . 46 66 Maximum Alert Level . | . . . Low Security (%) 100 | 100 100 100 Level 1 . | . . . Level 2 . | . . . Level 3 . | . . . Level 4 . | . . . Level 5 . | . . . High Security . | . . . Max Security . | . . . Squads Dispatched 3 | . 3 . Investigation 3 | . 3 . Extermination . | . . . Reinforcement . | . . . Assault . | . . . Garrison . | . . . Intercept . | . . . Construction Impeded . | . . . Haulers Reinforced . | . . . Stealth | -11 -10 -10 --------- Run | Scr Mat Min Distress Signals . | . . . Communications Jammed . | . . . Distress Signals . | . . . Times Spotted 38 | . 18 20 Peak Tracking Total 19 | . 4 19 Tactical Retreats . | . . . Traps | -11 -10 -10 ------- Run | Scr Mat Min Traps Triggered 1 | . 1 . Indirectly . | . . . Trap Hack Attempts . | . . . Triggered . | . . . Disarmed . | . . . Reprogrammed . | . . . Reused . | . . . Traps Extracted . | . . . Installed . | . . . Triggered . | . . . Machines | -11 -10 -10 ---------- Run | Scr Mat Min Machines Disabled 5 | . 3 2 Max in Single Turn 1 | . 1 1 Machines Sabotaged . | . . . Garrisons Compromised . | . . . Overloaded Fab Kills . | . . . Fab Network Shutdowns . | . . . Hacking | -11 -10 -10 --------- Run | Scr Mat Min Machines Accessed 6 | . 6 . Terminals 5 | . 5 . Fabricators . | . . . Repair Stations . | . . . Recycling Units 1 | . 1 . Scanalyzers . | . . . Garrison Access . | . . . Total Hacks 18 | . 18 . Successful 13 | . 13 . Failed 5 | . 5 . Catastrophic . | . . . Database Lockouts . | . . . Manual . | . . . Terminals 15 | . 15 . Fabricators . | . . . Repair Stations . | . . . Recycling Units 3 | . 3 . Scanalyzers . | . . . Garrison Access . | . . . Terminal Hacks 11 | . 11 . Robot Analysis 1 | . 1 . Prototype ID Bank 1 | . 1 . Branch Access Points 1 | . 1 . Unreport Threat 1 | . 1 . Locate Traps 1 | . 1 . Investigation Status 1 | . 1 . Recall Investigation 1 | . 1 . Hauler Manifests 1 | . 1 . Registered Components 1 | . 1 . Zone Layout 2 | . 2 . Fabricator Hacks . | . . . Repair Station Hacks . | . . . Recycling Unit Hacks 2 | . 2 . Report Inventory 1 | . 1 . Retrieve Components 1 | . 1 . Scanalyzer . | . . . Garrison Access Hacks . | . . . Unauthorized Hacks . | . . . Terminals . | . . . Fabricators . | . . . Repair Stations . | . . . Recycling Units . | . . . Scanalyzers . | . . . Garrison Access . | . . . Data Cores Recovered . | . . . Used . | . . . Hacking Detections 4 | . 4 . Full Trace Events 3 | . 3 . Feedback Events 2 | . 2 . Corruption 2 | . 2 . Feedback Blocked . | . . . Robot Schematics Acquired . | . . . Robots Built . | . . . Matter . | . . . Time . | . . . Total Robot Build Rating . | . . . Part Schematics Acquired . | . . . Parts Built . | . . . Matter . | . . . Time . | . . . Total Part Build Rating . | . . . Parts Repaired . | . . . Time . | . . . Parts Recycled . | . . . Recycled Matter . | . . . Retrieved Matter . | . . . Retrieved Components 3 | . 3 . Parts Scanalyzed . | . . . Part Schematics Acquired . | . . . Parts Damaged . | . . . Bothacking | -11 -10 -10 ------------ Run | Scr Mat Min Used RIF Installer . | . . . Robots Hacked . | . . . Non-combat . | . . . Combat . | . . . Robot Hacks Applied . | . . . Relay Couplers Released . | . . . Robots Rewired . | . . . Allies Hacked . | . . . Hacks Repelled . | . . . Allies | -11 -10 -10 -------- Run | Scr Mat Min Total Allies . | . . . Largest Group . | . . . Highest-Rated Group . | . . . Highest-Rated Ally . | . . . Total Orders . | . . . Ally Attacks . | . . . Total Damage . | . . . Kills . | . . . Allies Corrupted . | . . . Allies Melted . | . . . Intel | -11 -10 -10 ------- Run | Scr Mat Min Robot Analysis Total 1 | . 1 . Derelict Logs Recovered 2 | . . 2 Drone Launches . | . . . Drone Recoveries . | . . . Exploration | -11 -10 -10 ------------- Run | Scr Mat Min Turns Passed 1143 | 77 795 271 Spaces Moved 1212 | 77 594 541 Core 14 | 3 5 6 Treads 120 | . 120 . Legs 132 | . 132 . Wheels 278 | 74 193 11 Hover . | . . . Flight 668 | . 144 524 Fastest Speed 37 | 50 37 37 Average Speed 70 | 78 98 38 Slowest Speed 160 | 80 160 100 Overloaded Moves . | . . . Propulsion Burnouts . | . . . Robots Hopped 13 | . 6 7 Cave-ins Triggered . | . . . Exploration Rate (%) 52 | 3 71 82 Regions Visited 2 Branch Regions 1 Pre-discovered Areas . | . . . Known Exits Taken 1 | . 1 . Unknown Exits Taken 1 | 1 . . Scrap Searched 1 | . . 1 Spaces Dug 7 | . 7 . Terrain Destroyed 13 | . 9 4 Melee . | . . . Projectile . | . . . AOE 13 | . 9 4 Terrain Rammed . | . . . Walls Destroyed . | . . . Machines Disabled . | . . . Actions | -11 -10 -10 --------- Run | Scr Mat Min Total 1370 | 90 704 576 Wait 24 | 2 19 3 Move 1185 | 76 582 527 Hop 12 | . 5 7 Pick Up 16 | 6 8 2 Fast Attach 23 | 6 12 5 Attach 10 | . 7 3 Detach 2 | . 2 . Swap 1 | . . 1 Drop 18 | . 15 3 Fire 66 | . 53 13 Melee . | . . . Ram 13 | . 1 12 Kick . | . . . Crush . | . . . Escape Stasis . | . . . Rewire . | . . . Trap . | . . . Miscellaneous . | . . . Route ------- -11/Scrapyard -10/Materials (discovered 4 exits: [*Mat x2] / *Min x2) -10/Mines (discovered 2 exits: [*Mat] / [*Exi]) History --------- Turn | Location | Event 21 | -11/Scrapyard | Discovered new exit (range 16) 78 | -11/Scrapyard | Entered Materials 138 | -10/Materials | Identified exit to Mines 179 | -10/Materials | Discovered new exit (range 8) 301 | -10/Materials | Lost 4 parts (2n1u1w) 306 | -10/Materials | Build established: Mutant 379 | -10/Materials | Discovered new exit (range 16) 873 | -10/Materials | Entered Mines 903 | -10/Mines | Core integrity fell below 50% 914 | -10/Mines | Core integrity fell below 20% 938 | -10/Mines | Lost 6 parts (1p2n1u2w) 941 | -10/Mines | YI-UF0 nonchalantly dropped a Grenade Launcher on the ground 956 | -10/Mines | Learned 8 Materials zone layouts 988 | -10/Mines | Discovered new exit (range 9) 1067 | -10/Mines | Deemed a non-threat by the Exiles lab entrance 1067 | -10/Mines | Discovered new exit (range 5) 1124 | -10/Mines | Learned Materials trap positions 1127 | -10/Mines | Assembled infested the area 1144 | -10/Mines | Destroyed by as-39549 with Assembled Heavy Rifle Last Messages --------------- 01043_ Discarded Seismic Analyzer. 01067_ "No threat detected, you may enter." 01067_ EXIT=FOUND 01070_ System corrupted: Matter fused (-6). 01106_ K-01 Serf collects debris. 01118_ Searching scrap... 01118_ Found Sml. Laser. 01118_ Found Welding Torch. 01118_ Found Heat Sink. 01118_ Found 26 Matter. 01118_ Acquired Sml. Laser. 01119_ Acquired 24 matter. 01120_ Dropped Lgt. Assault Rifle. 01123_ ERTKMWH&S76==&NAJPS5SE=J=2%PW#W 01124_ Acquired derelict log, extracted data. Data stored: Materials trap records. 01127_ ALERT: Infestation in the mines, dispatching Demolisher response squad. 01142_ Flight Unit destroyed. 01143_ Sml. Laser destroyed. Map ----- +----------------------------------------------------+ | ?????????????????????????????????????????????????? | | ?????????????????????????????????????????????????? | | ???????????????????????#?????????????????????????? | | ?????????????????????# ?????????????????????????? | | ?????????????????? ?????????????????????????? | | ???????????????? ????????????????????????? | | ?????????????? ????????#???????????????? | | ?????????????? ?????? #???????????????? | | ????????????? ????? #???????????????? | | ?????????????# ????? ######??????????? | | ?????????????# ?????# ???????????? | | ?????????????# ##???# ????????????? | | ??????????????# #### #?????????????? | | ???????????????# #?????????????? | | ????????????????# ### ?????????? | | ???????????????## #????????? | | ?????????????### ????????????? | | ?????????????# ? #?? #??????????????? | | ????????????# ?##?? #??????????????? | | ?????????? ?#??? ??????????????? | | #?????????? ### ## ?##??# #??????????????? | | ##??????????????##???#####?? #??#?#??????????????? | | ##??????????????????????##? ##?#?#??????????????? | | #???????????????????????#? ### #??????????????? | | #??????????????????###### a ## #??????????????? | | ##?????????????????# @aaa a a #??????????????? | | ##??????????????### ###aa ####??????????????? | | #??????????????#|[ #?# #?????????????????? | | #??????????????#?###?## ##?????????????????? | | ##??????????????#%#????## #??????????????????? | | ####???????????????# #?????# #?????????????????? | | ??????????????????## ## ## #????????????????? | | ??????????????????# ? #?????####??????? | | #?????????????????# ## #???## #??????? | | ##????????????????# #?## #??## ##?????? | | #????????????????# #???### #?## ##????? | | #???????????????# #?????##### #### #????? | | #?????# ###### ######?????##### #????? | | #?????# ##??????## #????? | | #?????# #????### ## ##????? | | # #????# ##### #???## ######?????? | | ?# #????## ?????# ##??## #??????????? | | ??###?????##???????## ##???# #####??????? | | ????????????????????## #????# #??????? | | ??????#??####????????# ##???# #### #??????? | | ?#??????## ##????#### #???# ###??# #??????? | | ??#????## ##??## #???## ##????# #??????? | | ???#??## #### ##????## ##?????# ######?? | | #?????###### ###??????# ####???# #?? | | ##??#?#????## ##????????# #???###### #?? | +----------------------------------------------------+ Best States ------------- Heat Dissipation 35 Energy Generation 10 Energy Capacity 250 Matter Stores 300 Matter Capacity 300 Sight Range 16 Robot Scan Range 10 Terrain Scan Range 14 Terrain Scan Density 60 Resistance: KI 20 Resistance: TH 20 Resistance: EX 20 Resistance: EM 20 Resistance: I 20 Resistance: S 20 Resistance: P 20 Evasion (%) 62 Recoil Reduction 1 Offensive Hacking 10 Item Schematics ----------------- None Robot Schematics ------------------ None Fabricated ------------ Nothing Alien Tech Used ----------------- None Achievements -------------- GoHome() Challenges ------------ None Game ------ Seed GodAlloyWand Manual? 0 Play Time 00:30:20 Cumulative 8.2 hours Start 2020.09.18 @ 19:54:35 End 2020.09.18 @ 22:02:38 Sessions 3 Manual Loads 0 Difficulty Adventurer Special Mode None Game No. 5 Rogue 0 Adventurer 5 Explorer 0 Win Type - Total 0 Types 0/0/0/0/0/0/0/0/0 Lore% 8 Gallery% 15 Achievement% 15 Wizard Run 0 Options --------- ASCII 0 Keyboard 0 Movement Numpad Keybinds 0 Fullscreen 1 Font 18/SmallcapsGlow Map View 76x50 Tactical HUD 1 Map Filters NONE Filters NONE Steam 1 RUN: ffa06abe-2c42-451d-9931-bed3187054c1